bitfinex/quotes_SOLUSD_20260223
["timestamp","ask_amount","ask_price","bid_price","bid_amount"]
[1771814149456,20.99120899,78.13,78.094,1.20473011]
[1771814149947,31.98484599,78.163,78.096,1.20473011]
[1771814150158,20.99120899,78.14,78.101,1.20473011]
[1771814150351,20.99120899,78.13,78.101,1.20473011]
[1771814152049,20.99120899,78.13,78.103,1.20473011]
[1771814153356,20.99120899,78.14,78.105,1.20473011]
[1771814153554,44.77592845,78.167,78.111,1.20473011]
[1771814153753,20.99120899,78.15,78.111,1.20473011]
[1771814154453,20.99120899,78.14,78.111,1.20473011]
[1771814155354,21.00534122,78.14,78.113,1.20473011]
[1771814155546,21.00534122,78.15,78.113,1.20473011]
[1771814157568,21.00534122,78.13,78.11,12.80243607]
[1771814158072,12.79385445,78.163,78.111,1.20473011]
[1771814158353,21.00534122,78.14,78.111,1.20473011]
[1771814160258,21.00534122,78.14,78.113,1.20473011]
[1771814160957,21.00534122,78.13,78.113,1.20473011]
[1771814161357,21.00534122,78.14,78.113,1.20473011]
[1771814162344,21.00534122,78.14,78.115,1.20473011]
[1771814164461,21.00534122,78.14,78.116,12.80147472]
[1771814164852,21.00534122,78.13,78.081,1.20473011]
[1771814165053,21.00534122,78.12,78.082,1.20473011]
[1771814165858,12.79770665,78.139,78.09,21.00534122]
[1771814166060,12.79770665,78.139,78.091,1.20473011]
[1771814166061,21.00534122,78.13,78.091,1.20473011]
[1771814166265,21.00534122,78.12,78.091,1.20473011]
[1771814166467,21.00534122,78.13,78.093,1.20473011]
[1771814169169,21.00534122,78.14,78.101,1.20473011]
[1771814169969,51.14236271,78.214,78.111,1.20473011]
[1771814169970,21.00534122,78.15,78.111,1.20473011]
[1771814170364,21.00534122,78.14,78.111,1.20473011]
[1771814170862,21.00534122,78.13,78.111,1.20473011]
[1771814171170,21.00534122,78.13,78.113,1.20473011]
[1771814171369,21.00534122,78.14,78.113,1.20473011]
[1771814171757,21.00534122,78.13,78.107,12.80285992]
[1771814171972,21.00534122,78.13,78.08,0.2]
[1771814171973,21.00534122,78.12,78.091,1.20473011]
[1771814173169,21.00534122,78.12,78.093,1.20473011]
[1771814173376,21.00534122,78.13,78.093,1.20473011]
[1771814174778,12.79934467,78.129,78.095,1.20473011]
[1771814174964,21.00534122,78.12,78.095,1.20473011]
[1771814175279,12.79934467,78.129,78.095,1.20473011]
[1771814176867,12.79934467,78.129,78.097,1.20473011]
[1771814177061,5.36086188,78.148,78.1,8.40599837]
[1771814177062,12.79691955,78.144,78.1,8.40599837]
[1771814177269,12.79691955,78.144,78.111,1.20473011]
[1771814177574,12.79440434,78.16,78.111,1.20473011]
[1771814177759,12.79440434,78.16,78.096,160.05941404]
[1771814177760,8.40599837,78.16,78.121,1.20473011]
[1771814177954,8.40599837,78.15,78.121,1.20473011]
[1771814179277,8.40599837,78.15,78.123,1.20473011]
[1771814179486,0.1,78.2,78.141,1.20473011]
[1771814179695,0.1,78.2,78.172,1.20473011]
[1771814179871,0.1,78.2,78.181,1.20473011]
[1771814180479,8.40599837,78.19,78.144,1.20473011]
[1771814180784,8.40599837,78.18,78.144,1.20473011]
[1771814182065,8.40599837,78.19,78.151,1.20473011]
[1771814184096,5.36086188,78.197,78.153,1.20473011]
[1771814184282,8.40599837,78.19,78.153,1.20473011]
[1771814184790,8.40599837,78.18,78.153,1.20473011]
[1771814185293,8.40599837,78.19,78.153,1.20473011]
[1771814185765,0.1,78.2,78.171,1.20473011]
[1771814185968,8.50599837,78.2,78.171,1.20473011]
[1771814186179,21.29373334,78.2,78.171,1.20473011]
[1771814187470,12.88773497,78.2,78.171,1.20473011]
[1771814187673,8.40599837,78.18,78.147,1.20473011]
[1771814188280,8.40599837,78.18,78.117,3.69383402]
[1771814188281,8.40599837,78.19,78.151,1.20473011]
[1771814188684,0.1,78.2,78.171,1.20473011]
[1771814188873,12.78788731,78.199,78.16,8.40599837]
[1771814189077,8.40599837,78.19,78.161,1.20473011]
[1771814189276,20.9796945,78.19,78.161,1.20473011]
[1771814189476,12.78788731,78.199,78.161,1.20473011]
[1771814192092,12.78788731,78.199,78.163,1.20473011]
[1771814192688,20.9796945,78.19,78.163,1.20473011]
[1771814194595,20.9796945,78.19,78.164,13.99834353]
[1771814194797,20.9796945,78.19,78.165,1.20473011]
[1771814195177,20.9796945,78.18,78.157,1.20473011]
[1771814195780,20.9796945,78.18,78.142,1.20473011]
[1771814196482,12.79115875,78.179,78.143,12.79705155]
[1771814196682,12.79115875,78.179,78.144,1.20473011]
[1771814196884,20.9796945,78.19,78.151,1.20473011]
[1771814197078,20.9796945,78.18,78.151,1.20473011]
[1771814197284,20.9796945,78.18,78.144,1.20473011]
[1771814197693,12.78788731,78.199,78.161,1.20473011]
[1771814197903,20.9796945,78.17,78.144,1.20473011]
[1771814198195,20.9796945,78.17,78.135,1.20473011]
[1771814198699,12.79279509,78.169,78.136,12.79819801]
[1771814199002,12.79279509,78.169,78.137,1.20473011]
[1771814199795,20.9796945,78.16,78.137,1.20473011]
[1771814200004,12.79279509,78.169,78.137,1.20473011]
[1771814200503,20.9796945,78.17,78.141,1.20473011]
[1771814200793,33.77234772,78.17,78.143,1.20473011]
[1771814201804,12.79115875,78.179,78.143,1.20473011]
[1771814203301,12.79115875,78.179,78.145,1.20473011]
[1771814203882,5.36086188,78.184,78.144,12.79688779]
[1771814203883,12.79038761,78.184,78.15,20.9796945]
[1771814204104,20.9796945,78.19,78.161,1.20473011]
[1771814205187,20.9796945,78.19,78.162,12.79394078]
[1771814205385,12.78858266,78.195,78.163,1.20473011]
[1771814207011,20.9796945,78.18,78.153,1.20473011]
[1771814207182,20.9796945,78.19,78.161,1.20473011]
[1771814207992,33.7691241,78.19,78.163,1.20473011]
[1771814208308,20.9796945,78.19,78.163,1.20473011]
[1771814209612,33.76911763,78.19,78.163,1.20473011]
[1771814209787,20.9796945,78.18,78.163,1.20473011]
[1771814210507,33.76911763,78.19,78.163,1.20473011]
[1771814213404,21.18286565,78.19,78.163,1.20473011]
[1771814215398,8.39346595,78.19,78.165,1.20473011]
[1771814217090,8.39346595,78.19,78.164,12.79361342]
[1771814217091,0.1,78.2,78.171,1.20473011]
[1771814217501,0.1,78.2,78.173,1.20473011]
[1771814217697,8.49346595,78.2,78.173,1.20473011]
[1771814218006,8.39346595,78.19,78.167,1.20473011]
[1771814219392,8.39346595,78.18,78.142,1.20473011]
[1771814219597,21.18450266,78.18,78.142,1.20473011]
[1771814220016,8.39346595,78.18,78.151,1.20473011]
[1771814221013,12.79021436,78.185,78.151,1.20473011]
[1771814221420,8.39346595,78.19,78.153,1.20473011]
[1771814221597,8.39346595,78.18,78.153,1.20473011]
[1771814222242,8.39346595,78.17,78.132,1.20473011]
[1771814222513,8.39346595,78.16,78.132,1.20473011]
[1771814222695,8.39346595,78.17,78.132,1.20473011]
[1771814223390,8.39346595,78.16,78.134,1.20473011]
[1771814223593,8.39346595,78.15,78.134,1.20473011]
[1771814224198,8.39346595,78.16,78.134,1.20473011]
[1771814226109,12.79443186,78.159,78.134,1.20473011]
[1771814227714,12.79378759,78.163,78.136,1.20473011]
[1771814227903,8.39346595,78.16,78.136,1.20473011]
[1771814228425,12.79443186,78.159,78.136,1.20473011]
[1771814230225,8.39346595,78.16,78.137,1.20473011]
[1771814233124,31.9819899,78.169,78.137,1.20473011]
[1771814233622,12.79181323,78.175,78.151,1.20473011]
[1771814233826,21.18458717,78.18,78.151,1.20473011]
[1771814234122,12.79112122,78.18,78.151,1.20473011]
[1771814234737,12.78788731,78.199,78.161,1.20473011]
[1771814234937,8.39346595,78.19,78.161,1.20473011]
[1771814235106,12.78952282,78.189,78.162,1.20473011]
[1771814235305,8.39346595,78.19,78.162,1.20473011]
[1771814236020,12.78891613,78.193,78.162,1.20473011]
[1771814236231,0.1,78.2,78.18,8.39346595]
[1771814236400,0.1,78.21,78.191,1.20473011]
[1771814236607,8.39346595,78.23,78.201,1.20473011]
[1771814237300,12.78298329,78.229,78.201,1.20473011]
[1771814238233,8.39346595,78.26,78.221,1.20473011]
[1771814238420,8.39346595,78.26,78.202,12.78739674]
[1771814238421,12.77645044,78.269,78.231,1.20473011]
[1771814238932,8.39346595,78.25,78.211,1.20473011]
[1771814239433,12.77971603,78.249,78.213,1.20473011]
[1771814239628,8.39346595,78.24,78.213,1.20473011]
[1771814239939,12.77971603,78.249,78.213,1.20473011]
[1771814240829,8.39346595,78.25,78.221,1.20473011]
[1771814241033,21.17311011,78.25,78.221,1.20473011]
[1771814241342,8.39346595,78.25,78.221,1.20473011]
[1771814241547,8.39346595,78.25,78.223,1.20473011]
[1771814241717,8.39346595,78.24,78.223,1.20473011]
[1771814243054,8.39346595,78.23,78.202,12.78738224]
[1771814243548,12.7824974,78.232,78.2,8.39346595]
[1771814243917,8.39346595,78.23,78.19,8.39346595]
[1771814244119,8.39346595,78.23,78.171,3.69383402]
[1771814244330,8.39346595,78.23,78.19,8.39346595]
[1771814244921,8.39346595,78.24,78.211,0.61603811]
[1771814245120,12.78134945,78.239,78.211,0.61603811]
[1771814245841,8.39346595,78.25,78.204,0.61603811]
[1771814245842,3.69383402,78.25,78.204,0.61603811]
[1771814246019,8.39346595,78.22,78.194,0.61603811]
[1771814246214,8.39346595,78.23,78.194,0.61603811]
[1771814247217,8.39346595,78.22,78.194,0.61603811]
[1771814247651,8.39346595,78.23,78.194,0.61603811]
[1771814247941,5.36086188,78.241,78.211,0.61603811]
[1771814248125,8.39346595,78.23,78.201,0.61603811]
[1771814248329,8.39346595,78.22,78.201,0.61603811]
[1771814248633,8.39346595,78.22,78.191,0.61603811]
[1771814249729,8.39346595,78.23,78.193,0.61603811]
[1771814250240,3.69383402,78.24,78.2,8.39346595]
[1771814250421,8.39346595,78.23,78.201,0.61603811]
[1771814250624,8.39346595,78.22,78.193,0.61603811]
[1771814250836,8.39346595,78.2,78.172,12.79222286]
[1771814251034,8.39346595,78.2,78.173,0.61603811]
[1771814251344,8.39346595,78.21,78.173,0.61603811]
[1771814252275,8.39346595,78.22,78.181,0.61603811]
[1771814252423,12.78461754,78.219,78.181,0.61603811]
[1771814253519,12.78461754,78.219,78.183,0.61603811]
[1771814255437,8.39346595,78.22,78.183,0.61603811]
[1771814255826,8.39346595,78.22,78.185,0.61603811]
[1771814257939,12.78461754,78.219,78.187,0.61603811]
[1771814258822,8.39346595,78.21,78.187,0.61603811]
[1771814261242,12.78625222,78.209,78.187,0.61603811]
[1771814261425,12.78625222,78.209,78.174,0.60236505]
[1771814261626,8.39346595,78.2,78.167,0.60236505]
[1771814261836,8.39346595,78.2,78.133,31.99672353]
[1771814261837,8.39346595,78.18,78.153,0.60236505]
[1771814262129,8.39346595,78.16,78.134,0.60236505]
[1771814262824,12.79148598,78.177,78.1,8.39346595]
[1771814262825,8.39346595,78.17,78.141,0.60236505]
[1771814263422,8.39346595,78.16,78.141,0.60236505]
[1771814263747,8.39346595,78.16,78.13,0.60236505]
[1771814264723,8.39346595,78.14,78.111,0.60236505]
[1771814264924,8.39346595,78.13,78.111,0.60236505]
[1771814265126,8.39346595,78.14,78.112,0.60236505]
[1771814266042,44.78051151,78.159,78.111,12.80229417]
[1771814266043,12.79443186,78.159,78.121,0.60236505]
[1771814266843,12.79443186,78.159,78.123,0.60236505]
[1771814267552,8.39346595,78.19,78.151,0.60236505]
[1771814267845,8.39346595,78.18,78.151,0.60236505]
[1771814269033,12.79115875,78.179,78.151,0.60236505]
[1771814269237,8.39346595,78.17,78.141,0.60236505]
[1771814270541,8.39346595,78.16,78.141,0.60236505]
[1771814271655,12.79443186,78.159,78.141,0.60236505]
[1771814271950,8.39346595,78.16,78.141,0.60236505]
[1771814272252,12.79295875,78.168,78.141,0.60236505]
[1771814272858,8.39346595,78.16,78.141,0.60236505]
[1771814273038,8.39346595,78.15,78.129,0.60236505]
[1771814273245,8.39346595,78.15,78.07,51.23554249]
[1771814273246,8.39346595,78.14,78.113,0.60236505]
[1771814273548,12.79232133,78.172,78.131,0.60236505]
[1771814273855,3.69383402,78.169,78.131,0.60236505]
[1771814275052,8.39346595,78.16,78.131,0.60236505]
[1771814275351,8.40104218,78.15,78.131,0.60236505]
[1771814275740,8.40104218,78.16,78.131,0.60236505]
[1771814276546,8.40104218,78.15,78.131,0.60236505]
[1771814277136,8.40104218,78.14,78.114,0.60236505]
[1771814277535,8.40104218,78.14,78.11,0.2]
[1771814277846,12.79770665,78.139,78.111,0.60236505]
[1771814278052,8.40104218,78.14,78.112,0.60236505]
[1771814278434,12.79706816,78.143,78.112,0.60236505]
[1771814279653,8.40104218,78.14,78.112,0.60236505]
[1771814279857,8.40104218,78.12,78.093,0.60236505]
[1771814280446,8.40104218,78.13,78.093,0.60236505]
[1771814281458,3.69383402,78.148,78.121,0.60236505]
[1771814282274,12.79639653,78.147,78.121,0.60236505]
[1771814283050,8.40104218,78.14,78.112,0.60236505]
[1771814283247,21.01003154,78.14,78.112,0.60236505]
[1771814283451,12.79639653,78.147,78.112,0.60236505]
[1771814283850,21.01003154,78.14,78.112,0.60236505]
[1771814284063,12.79639653,78.147,78.112,0.60236505]
[1771814284238,12.79639653,78.147,78.114,0.60236505]
[1771814284744,21.54714979,78.13,78.09,21.01003154]
[1771814284944,21.54714979,78.13,78.1,21.01003154]
[1771814285542,21.01003154,78.14,78.1,21.01003154]
[1771814285748,44.78738786,78.147,78.081,44.82524557]
[1771814285749,0.53551615,78.129,78.09,21.01003154]
[1771814286253,21.01003154,78.12,78.09,21.01003154]
[1771814286662,21.01003154,78.12,78.091,0.58583128]
[1771814286956,21.01003154,78.12,78.092,0.58583128]
[1771814287257,0.53236694,78.119,78.082,0.58583128]
[1771814288264,0.53081941,78.117,78.082,0.58583128]
[1771814288562,0.5102287,78.109,78.082,0.58583128]
[1771814288942,0.5102287,78.109,78.081,0.525315]
[1771814289538,0.5102287,78.109,78.081,12.80721302]
[1771814289770,0.5102287,78.109,78.082,0.525315]
[1771814290460,0.5102287,78.117,78.082,0.525315]
[1771814292868,0.5102287,78.115,78.082,0.525315]
[1771814294267,0.5102287,78.115,78.084,0.525315]
[1771814295074,0.5102287,78.115,78.08,21.21003154]
[1771814295075,0.5102287,78.109,78.08,0.2]
[1771814295279,0.5102287,78.109,78.081,0.525315]
[1771814295446,0.5102287,78.109,78.062,0.525315]
[1771814295650,21.01003154,78.09,78.061,0.525315]
[1771814295866,0.5102287,78.098,78.061,0.525315]
[1771814296244,0.5102287,78.098,78.062,0.525315]
[1771814297667,0.51492596,78.096,78.062,0.525315]
[1771814298473,12.80458916,78.097,78.071,0.54261377]
[1771814298767,5.36086188,78.108,78.071,0.54261377]
[1771814298768,5.36086188,78.106,78.071,0.54261377]
[1771814299072,0.51224703,78.105,78.071,0.54261377]
[1771814299666,44.81204547,78.104,78.071,0.54261377]
[1771814299871,0.51093059,78.099,78.071,0.54261377]
[1771814300967,12.80344156,78.104,78.071,0.54261377]
[1771814301267,12.80344156,78.104,78.081,0.54261377]
[1771814302067,0.50834292,78.111,78.081,0.54261377]
[1771814302278,0.50834292,78.109,78.081,0.54261377]
[1771814302570,0.50834292,78.109,78.068,0.54261377]
[1771814302873,32.00439554,78.115,78.06,0.2]
[1771814302874,0.50834292,78.089,78.061,0.54261377]
[1771814303173,0.50707133,78.099,78.062,0.54261377]
[1771814303376,21.01003154,78.1,78.062,0.54261377]
[1771814303377,8.41279151,78.1,78.062,0.54261377]
[1771814303776,5.36086188,78.113,78.081,0.54261377]
[1771814303777,0.50581434,78.113,78.081,0.54261377]
[1771814304675,12.80213027,78.112,78.081,0.54261377]
[1771814304972,12.79770665,78.139,78.101,0.54261377]
[1771814305170,0.5045718,78.129,78.091,0.54261377]
[1771814305374,0.5045718,78.109,78.072,13.35115028]
[1771814305680,0.5045718,78.099,78.073,0.54261377]
[1771814305887,0.5045718,78.099,78.064,0.54261377]
[1771814306385,8.41279151,78.09,78.064,0.54261377]
[1771814306570,0.5045718,78.099,78.064,0.54261377]
[1771814306878,0.50212935,78.099,78.071,0.54261377]
[1771814307060,0.50212935,78.095,78.061,0.54261377]
[1771814307254,0.50212935,78.089,78.061,0.54261377]
[1771814307456,0.50212935,78.099,78.062,0.54261377]
[1771814307775,12.10662553,78.1,78.062,0.54261377]
[1771814308460,3.69383402,78.101,78.062,0.54261377]
[1771814309680,21.71663152,78.1,78.064,0.54261377]
[1771814311173,21.71663152,78.1,78.066,0.54261377]
[1771814311174,12.80409731,78.1,78.066,0.54261377]
[1771814311477,12.8033137,78.105,78.071,0.54261377]
[1771814311656,12.8033137,78.105,78.081,0.54261377]
[1771814312876,0.49626453,78.104,78.081,0.54261377]
[1771814313073,0.49626453,78.104,78.06,1e-08]
[1771814313275,0.49626453,78.104,78.0,0.2]
[1771814313276,5.36086188,78.068,78.02,8.61279151]
[1771814313478,3.69383402,78.086,78.02,8.61279151]
[1771814313479,0.49513168,78.049,78.022,0.54261377]
[1771814313857,0.49401183,78.057,78.022,0.54261377]
[1771814314058,0.49401183,78.057,78.028,0.54261377]
[1771814314262,8.41279151,78.06,78.031,0.54261377]
[1771814314654,12.10662553,78.07,78.031,0.54261377]
[1771814314987,0.49401183,78.069,78.031,0.54261377]
[1771814315284,12.80934569,78.068,78.032,0.54261377]
[1771814316771,0.49181058,78.067,78.032,0.54261377]
[1771814317074,0.49181058,78.067,78.031,0.54261377]
[1771814317284,12.80934569,78.068,78.031,0.54261377]
[1771814317874,13.29897238,78.075,78.041,0.54261377]
[1771814318061,21.04772476,78.07,78.041,0.54261377]
[1771814318257,0.4896596,78.074,78.041,0.54261377]
[1771814319580,12.80852535,78.073,78.043,0.51714711]
[1771814319983,21.04772476,78.09,78.051,0.51714711]
[1771814320193,12.80655102,78.086,78.061,0.51714711]
[1771814321266,0.48550392,78.079,78.043,0.51714711]
[1771814321467,15.53322868,78.08,78.043,0.51714711]
[1771814321783,21.04772476,78.07,78.043,0.51714711]
[1771814322783,21.04772476,78.06,78.031,0.54393449]
[1771814323685,21.04772476,78.05,78.03,0.2]
[1771814324685,21.04772476,78.04,78.01,0.2]
[1771814324889,21.04772476,78.03,78.01,0.2]
[1771814325785,32.03526683,78.039,78.01,0.2]
[1771814326180,12.81312063,78.045,78.01,0.2]
[1771814326181,3.69383402,78.042,78.011,0.54393449]
[1771814326377,12.81312063,78.045,78.011,0.54393449]
[1771814326892,44.84592221,78.045,78.011,0.54393449]
[1771814327590,21.04772476,78.04,78.011,0.54393449]
[1771814327793,44.84937017,78.039,78.011,0.54393449]
[1771814328890,12.81344727,78.044,78.012,0.54393449]
[1771814329487,12.81344727,78.044,78.021,0.54393449]
[1771814329689,32.03126796,78.049,78.021,0.54393449]
[1771814330615,21.04772476,78.08,78.041,0.54393449]
[1771814330893,21.04772476,78.07,78.032,0.54393449]
[1771814331094,21.04772476,78.06,78.032,0.54393449]
[1771814331292,21.04772476,78.05,78.021,0.54393449]
[1771814331493,21.04772476,78.04,78.011,0.54393449]
[1771814331994,12.81410576,78.039,78.011,0.54393449]
[1771814332382,12.81335409,78.044,78.011,13.36259793]
[1771814332707,3.69383402,78.051,78.021,0.54393449]
[1771814332990,12.81164322,78.054,78.021,0.54393449]
[1771814333196,12.80943276,78.068,78.04,21.04772476]
[1771814333385,12.80943276,78.068,78.041,0.54393449]
[1771814333993,12.80754108,78.079,78.051,0.54393449]
[1771814334693,44.82639378,78.079,78.051,0.54393449]
[1771814336581,44.82639378,78.079,78.041,0.54393449]
[1771814337001,44.82639378,78.079,78.042,0.54393449]
[1771814340792,12.80754108,78.079,78.044,0.54393449]
[1771814340988,12.80652261,78.086,78.061,0.54393449]
[1771814342605,44.82250498,78.086,78.061,0.54393449]
[1771814342807,12.80652261,78.086,78.061,0.54393449]
[1771814347604,0.51875984,78.069,78.018,32.04382654]
[1771814347803,21.045645,78.06,78.03,21.045645]
[1771814348011,0.51875984,78.069,78.03,21.045645]
[1771814349502,21.045645,78.06,78.02,21.045645]
[1771814349699,0.51892021,78.049,78.01,21.245645]
[1771814349891,0.51819826,78.029,78.01,0.2]
[1771814350091,5.36086188,78.053,78.01,0.2]
[1771814350092,0.51819826,78.046,78.012,0.52301613]
[1771814350404,21.56384326,78.03,78.01,0.2]
[1771814350709,0.51819826,78.029,78.01,0.2]
[1771814351491,21.045645,78.03,78.01,0.2]
[1771814351707,12.81574799,78.029,78.01,0.2]
[1771814351908,0.51677914,78.028,78.01,0.2]
[1771814352495,44.85511796,78.029,78.01,0.2]
[1771814353111,0.51677914,78.036,78.01,0.2]
[1771814353112,12.81472473,78.036,78.011,0.52301613]
[1771814353900,12.81373954,78.042,78.013,0.52301613]
[1771814354398,6.68405802,78.058,78.03,21.045645]
[1771814354602,53.58795329,78.06,78.031,0.52301613]
[1771814355512,0.51471102,78.049,78.01,21.245645]
[1771814355704,5.36086188,78.056,78.011,0.52301613]
[1771814355705,21.56035602,78.04,78.011,0.52301613]
[1771814355895,12.81410576,78.039,78.011,0.52301613]
[1771814358014,0.48687023,78.038,78.01,0.2]
[1771814358216,21.045645,78.02,78.0,0.2]
[1771814358402,21.045645,78.03,78.001,0.51915767]
[1771814358597,21.045645,78.03,78.0,0.2]
[1771814358598,5.36086188,78.038,78.002,0.51915767]
[1771814359000,21.045645,78.03,78.002,0.51915767]
[1771814360100,12.81574799,78.029,78.002,0.51915767]
[1771814360308,0.48687023,78.028,78.002,0.51915767]
[1771814361125,5.36086188,78.027,78.0,0.2]
[1771814361332,21.045645,78.02,78.0,0.2]
[1771814362416,0.48687023,78.018,78.0,0.2]
[1771814362620,0.48687023,78.009,77.99,0.2]
[1771814362819,21.045645,77.99,77.97,0.51915767]
[1771814363330,0.48687023,77.999,77.97,0.51915767]
[1771814364433,12.81833777,78.014,77.981,0.51915767]
[1771814364626,21.045645,78.01,77.981,0.51915767]
[1771814365132,0.3077126,78.009,77.981,0.51915767]
[1771814366018,12.81833777,78.014,77.981,0.51915767]
[1771814366330,21.045645,78.01,77.981,0.51915767]
[1771814366927,21.045645,78.0,77.967,0.51915767]
[1771814367132,21.045645,78.0,77.966,12.82606914]
[1771814367133,0.30653298,78.009,77.971,0.51915767]
[1771814367321,21.045645,78.01,77.971,0.51915767]
[1771814367520,3.69383402,78.012,77.981,0.51915767]
[1771814368514,12.81870505,78.011,77.981,0.51915767]
[1771814368819,21.045645,78.01,77.981,0.51915767]
[1771814369033,12.81870505,78.011,77.981,0.51915767]
[1771814369416,21.045645,78.01,77.981,0.51915767]
[1771814370135,21.045645,77.99,77.96,0.71915767]
[1771814370321,0.30481388,77.979,77.96,0.2]
[1771814370518,5.36086188,77.989,77.932,0.52437417]
[1771814370519,5.36086188,77.967,77.932,0.52437417]
[1771814370719,21.045645,77.96,77.932,0.52437417]
[1771814371115,12.82577467,77.968,77.941,0.52437417]
[1771814371321,12.82501708,77.973,77.941,0.52437417]
[1771814372033,21.045645,77.97,77.941,0.52437417]
[1771814372216,21.53251523,77.96,77.92,21.045645]
[1771814372924,13.31412558,77.959,77.92,21.045645]
[1771814373128,0.48687023,77.958,77.92,21.045645]
[1771814373335,12.82419277,77.978,77.95,21.045645]
[1771814373918,5.36086188,77.977,77.94,21.045645]
[1771814374219,5.84773211,77.975,77.941,0.51915767]
[1771814374811,21.045645,77.98,77.943,0.51915767]
[1771814375420,3.69383402,77.987,77.951,0.51915767]
[1771814375748,3.69383402,77.983,77.951,0.51915767]
[1771814375918,13.30968458,77.986,77.951,0.51915767]
[1771814376231,3.69383402,77.983,77.951,0.51915767]
[1771814376435,21.045645,77.99,77.961,0.51915767]
[1771814377135,12.82149908,77.994,77.961,0.51915767]
[1771814377335,3.69383402,77.991,77.961,0.51915767]
[1771814377714,12.82149908,77.994,77.962,0.51915767]
[1771814378636,12.82149908,77.994,77.971,0.51583392]
[1771814379027,0.50087319,77.989,77.96,0.51583392]
[1771814379330,0.50087319,77.987,77.951,0.51583392]
[1771814379534,0.50087319,77.987,77.952,0.51583392]
[1771814379735,12.82248551,77.988,77.952,0.51583392]
[1771814379937,0.50087319,77.987,77.952,0.51583392]
[1771814381926,0.50087319,77.985,77.952,0.51583392]
[1771814382235,21.045645,77.98,77.952,0.51583392]
[1771814383138,21.045645,77.96,77.933,0.51583392]
[1771814383338,21.045645,77.96,77.894,51.35158946]
[1771814383339,21.045645,77.98,77.941,0.51583392]
[1771814383541,0.50087319,77.979,77.941,0.51583392]
[1771814384039,21.045645,77.98,77.943,0.51583392]
[1771814384455,0.50087319,77.979,77.943,0.51583392]
[1771814384741,0.50087319,77.969,77.943,0.51583392]
[1771814385342,6.68799328,77.979,77.951,0.51583392]
[1771814385643,12.82050241,78.001,77.971,0.51583392]
[1771814385944,0.50087319,78.001,77.971,0.51583392]
[1771814386142,21.54651819,78.0,77.971,0.51583392]
[1771814386340,0.50087319,77.999,77.971,0.51583392]
[1771814386647,0.50087319,77.999,77.963,0.51583392]
[1771814387547,12.81901922,78.01,77.981,0.51583392]
[1771814387730,0.50087319,78.009,77.981,0.51583392]
[1771814388048,0.50087319,78.007,77.971,0.51583392]
[1771814388250,0.50087319,77.999,77.963,0.51583392]
[1771814390248,12.82084156,77.998,77.971,0.51583392]
[1771814390451,3.69383402,78.004,77.971,0.51583392]
[1771814390642,12.81936236,78.007,77.981,0.51583392]
[1771814391127,0.50087319,77.989,77.95,21.045645]
[1771814393047,0.50087319,77.987,77.95,33.87427394]
[1771814393251,0.50087319,77.987,77.951,0.51583392]
[1771814393948,0.50087319,77.985,77.951,0.51583392]
[1771814394448,5.36086188,78.004,77.918,3.69383402]
[1771814394449,0.50087319,78.009,77.971,0.51583392]
[1771814394637,0.50087319,78.009,77.981,0.51583392]
[1771814395658,13.32055327,78.006,77.981,0.51583392]
[1771814396532,5.36086188,78.024,77.942,51.31966057]
[1771814396533,0.50087319,78.032,78.001,0.51583392]
[1771814396755,0.50087319,78.049,78.021,0.51583392]
[1771814396936,6.68183612,78.047,78.03,21.045645]
[1771814397142,12.81174324,78.054,78.031,0.51583392]
[1771814397535,0.50087319,78.059,78.031,0.51583392]
[1771814397536,12.8109867,78.058,78.031,0.51583392]
[1771814397750,0.50087319,78.073,78.05,21.045645]
[1771814398056,0.50087319,78.073,78.041,0.51583392]
[1771814398257,0.50087319,78.073,78.05,21.045645]
[1771814399257,12.80868941,78.072,78.05,21.04028918]
[1771814401039,12.80868941,78.072,78.03,21.04028918]
[1771814401040,0.50087319,78.069,78.03,21.04028918]
[1771814401239,0.50087319,78.067,78.03,21.04028918]
[1771814402163,0.50087319,78.059,78.02,21.04028918]
[1771814402388,0.50087319,78.049,78.01,21.04028918]
[1771814402543,0.50087319,78.049,78.011,12.81870505]
[1771814403538,0.50087319,78.047,78.011,12.81870505]
[1771814404056,0.50087319,78.047,78.02,21.04028918]
[1771814404456,0.50087319,78.047,78.021,0.51583392]
[1771814404661,12.81196233,78.053,78.029,0.51583392]
[1771814404870,0.50087319,78.049,78.01,21.04028918]
[1771814405464,0.50087319,78.039,78.0,21.04028918]
[1771814405666,0.50087319,78.019,77.982,0.51583392]
[1771814405962,0.50087319,78.009,77.973,0.51583392]
[1771814406142,0.50087319,78.018,77.981,0.51583392]
[1771814408361,21.04028918,78.01,77.981,0.51583392]
[1771814409680,0.51620139,78.009,77.972,0.49730274]
[1771814410763,21.04028918,78.01,77.938,51.32221544]
[1771814410764,12.81788351,78.016,77.99,21.53759192]
[1771814410962,21.55649057,78.01,77.974,0.49730274]
[1771814411559,21.55649057,78.01,77.98,21.04028918]
[1771814411743,21.55649057,78.01,77.98,21.53759192]
[1771814411946,0.51620139,78.009,77.98,0.49730274]
[1771814412352,0.51620139,78.009,77.981,0.49730274]